bitfinex/quotes_BTCUSD_20230120
["timestamp","ask_amount","ask_price","bid_price","bid_amount"]
[1674219064924,0.01791217,21108.0,21107.0,3.49136603]
[1674219065166,0.01791217,21108.0,21107.0,3.37976605]
[1674219065469,0.0247489,21110.0,21109.0,0.9816]
[1674219065679,0.0247489,21110.0,21109.0,3.29792925]
[1674219066156,0.0247489,21110.0,21109.0,3.33392925]
[1674219066646,0.0247489,21110.0,21109.0,3.52876391]
[1674219067129,0.0247489,21110.0,21109.0,3.33410476]
[1674219067376,0.02084917,21111.0,21109.0,3.95661455]
[1674219067633,0.02084917,21111.0,21110.0,1.73003146]
[1674219067875,0.02084917,21111.0,21110.0,2.97302669]
[1674219068592,0.02084917,21111.0,21110.0,2.495825]
[1674219068853,0.02084917,21111.0,21110.0,2.531825]
[1674219069080,0.02084917,21111.0,21110.0,2.624825]
[1674219069384,0.02084917,21111.0,21110.0,3.33887669]
[1674219069643,0.02084917,21111.0,21110.0,3.45044846]
[1674219069909,0.02084917,21111.0,21110.0,1.416976]
[1674219070483,0.02084917,21111.0,21110.0,1.86745626]
[1674219070694,0.02084917,21111.0,21110.0,1.408476]
[1674219070695,0.01584917,21111.0,21110.0,1.408476]
[1674219071818,0.01584917,21111.0,21110.0,1.708476]
[1674219072077,0.01584917,21111.0,21110.0,2.03913107]
[1674219072614,0.01584917,21111.0,21110.0,2.04763107]
[1674219072893,0.37444485,21111.0,21110.0,1.73913107]
[1674219073148,0.18012388,21111.0,21110.0,1.73913107]
[1674219073433,0.01584917,21111.0,21110.0,1.42557307]
[1674219073962,0.18012388,21111.0,21110.0,0.95186407]
[1674219074486,0.18012388,21111.0,21110.0,0.47815507]
[1674219074767,0.61399688,21111.0,21110.0,0.129]
[1674219075027,0.25662388,21111.0,21110.0,0.129]
[1674219075568,0.25651917,21111.0,21110.0,0.036]
[1674219075822,0.09934917,21111.0,21110.0,0.04]
[1674219076608,0.09934917,21111.0,21110.0,0.82011013]
[1674219076609,0.09234917,21111.0,21110.0,0.82011013]
[1674219077400,0.09234917,21111.0,21110.0,0.89211013]
[1674219077658,0.01584917,21111.0,21110.0,0.89211013]
[1674219078249,0.18001917,21111.0,21110.0,0.108]
[1674219078416,0.66673035,21111.0,21110.0,0.108]
[1674219078694,0.09234917,21111.0,21110.0,0.53408613]
[1674219078962,0.09234917,21111.0,21110.0,0.68408613]
[1674219079228,0.09234917,21111.0,21110.0,1.15779513]
[1674219079523,0.09245388,21111.0,21110.0,1.45779513]
[1674219079803,0.09234917,21111.0,21110.0,1.45779513]
[1674219080093,0.01584917,21111.0,21110.0,2.26657013]
[1674219082524,0.01584917,21111.0,21110.0,1.848984]
[1674219082808,0.01584917,21111.0,21110.0,2.25650495]
[1674219083064,0.01584917,21111.0,21110.0,2.2517041]
[1674219083600,0.01584917,21111.0,21110.0,1.84418315]
[1674219084144,0.01584917,21111.0,21110.0,2.25162759]
[1674219084410,0.01584917,21111.0,21110.0,2.36319936]
[1674219085450,0.01584917,21111.0,21110.0,2.25162759]
[1674219085717,0.01584917,21111.0,21110.0,2.29119936]
[1674219085982,0.01584917,21111.0,21110.0,2.27154491]
[1674219086234,0.01584917,21111.0,21110.0,2.17954491]
[1674219086494,0.01584917,21111.0,21110.0,1.77218315]
[1674219088172,0.01584917,21111.0,21110.0,2.1847248]
[1674219088431,0.01584917,21111.0,21110.0,1.77218315]
[1674219088686,0.01584917,21111.0,21110.0,1.86418315]
[1674219088959,0.01584917,21111.0,21110.0,2.22612563]
[1674219089231,0.00934917,21111.0,21110.0,1.92612563]
[1674219090307,0.00945388,21111.0,21110.0,1.43255963]
[1674219090576,0.00934917,21111.0,21110.0,1.43255963]
[1674219091698,0.25001917,21111.0,21110.0,0.95885063]
[1674219092527,0.08584917,21111.0,21110.0,0.95885063]
[1674219092785,0.08584917,21111.0,21110.0,1.25885063]
[1674219093354,0.08684917,21111.0,21110.0,0.95085063]
[1674219093630,0.08584917,21111.0,21110.0,0.86685063]
[1674219093889,0.01034917,21111.0,21110.0,1.25185063]
[1674219094144,0.01034917,21111.0,21110.0,0.95185063]
[1674219094949,0.01034917,21111.0,21110.0,1.25185063]
[1674219095190,0.01034917,21111.0,21110.0,0.95185063]
[1674219095455,0.01034917,21111.0,21110.0,1.25185063]
[1674219098132,0.01034917,21111.0,21110.0,1.72555963]
[1674219098915,0.01034917,21111.0,21110.0,1.42555963]
[1674219099171,0.17462388,21111.0,21110.0,0.95185063]
[1674219099687,0.17451917,21111.0,21110.0,0.95185063]
[1674219099949,0.01034917,21111.0,21110.0,1.25185063]
[1674219100231,0.01034917,21111.0,21110.0,0.95185063]
[1674219100481,0.01045388,21111.0,21110.0,0.95185063]
[1674219101006,0.01034917,21111.0,21110.0,1.25185063]
[1674219101260,0.00934917,21111.0,21110.0,1.16685063]
[1674219101540,0.01034917,21111.0,21110.0,0.93985063]
[1674219102580,0.01045388,21111.0,21110.0,0.93985063]
[1674219102868,0.01034917,21111.0,21110.0,0.46614163]
[1674219103412,0.17451917,21111.0,21110.0,0.10419915]
[1674219103660,0.17462388,21111.0,21110.0,0.10419915]
[1674219103924,0.25092388,21111.0,21110.0,0.10419915]
[1674219104225,0.56214188,21111.0,21110.0,0.10419915]
[1674219104775,0.25092388,21111.0,21110.0,0.10419915]
[1674219105243,0.57628588,21111.0,21110.0,0.10419915]
[1674219105493,0.49998588,21111.0,21110.0,0.10419915]
[1674219106047,1.02454932,21111.0,21110.0,0.10419915]
[1674219106278,0.97454932,21111.0,21110.0,0.10419915]
[1674219107048,2.07442132,21111.0,21110.0,0.10419915]
[1674219107526,1.60073532,21111.0,21110.0,0.10419915]
[1674219108640,2.07442132,21111.0,21110.0,0.10419915]
[1674219109144,1.60073532,21111.0,21110.0,0.10419915]
[1674219110716,2.07442132,21111.0,21110.0,0.10419915]
[1674219111293,1.64985788,21111.0,21110.0,0.10419915]
[1674219111441,2.00086183,21111.0,21110.0,0.10419915]
[1674219112761,2.2993253,21111.0,21110.0,0.10419915]
[1674219113773,2.00086183,21111.0,21110.0,0.10419915]
[1674219115320,1.52717583,21111.0,21110.0,0.10419915]
[1674219115587,2.00086183,21111.0,21110.0,0.10419915]
[1674219116613,1.90086183,21111.0,21110.0,0.10412257]
[1674219120316,2.16723319,21111.0,21110.0,0.10412257]
[1674219120578,1.90086183,21111.0,21110.0,0.10412257]
[1674219122204,1.90086183,21111.0,21110.0,1e-08]
[1674219122481,1.54985788,21111.0,21110.0,0.03600001]
[1674219122755,1.79812034,21111.0,21110.0,0.03600001]
[1674219123036,1.54985788,21111.0,21110.0,0.036]
[1674219123293,1.62785788,21111.0,21110.0,0.037]
[1674219123595,1.54985788,21111.0,21110.0,0.036]
[1674219123851,1.62785788,21111.0,21110.0,0.037]
[1674219124849,1.91356022,21111.0,21110.0,0.036]
[1674219125120,1.99156022,21111.0,21110.0,0.037]
[1674219125379,1.99156022,21111.0,21110.0,0.036]
[1674219125650,2.06956022,21111.0,21110.0,0.037]
[1674219126466,0.633862,21111.0,21110.0,0.037]
[1674219126750,0.633862,21111.0,21110.0,0.40743862]
[1674219126751,0.156,21111.0,21110.0,0.40743862]
[1674219127148,0.156,21111.0,21110.0,0.510709]
[1674219127150,0.156,21111.0,21110.0,0.984418]
[1674219127375,0.156,21111.0,21110.0,2.19737985]
[1674219127592,0.0005707,21112.0,21110.0,2.01984529]
[1674219127837,0.0005707,21112.0,21111.0,0.93899922]
[1674219128098,0.0005707,21112.0,21111.0,1.88637122]
[1674219128546,0.0005707,21112.0,21111.0,1.482704]
[1674219128769,0.0075707,21112.0,21111.0,1.538704]
[1674219128990,0.0005707,21112.0,21111.0,1.93048795]
[1674219129457,0.0075707,21112.0,21111.0,2.02618795]
[1674219129901,0.0005707,21112.0,21111.0,2.00618795]
[1674219131059,0.0065707,21112.0,21111.0,1.628904]
[1674219131284,0.0065707,21112.0,21111.0,2.03218818]
[1674219131506,0.0065707,21112.0,21111.0,1.628904]
[1674219131748,0.0065707,21112.0,21111.0,2.03203496]
[1674219133982,0.0065707,21112.0,21111.0,1.628904]
[1674219135653,0.0065707,21112.0,21111.0,1.59110876]
[1674219135914,0.0065707,21112.0,21111.0,1.59740876]
[1674219136699,0.0065707,21112.0,21111.0,1.165672]
[1674219136965,0.0065707,21112.0,21111.0,1.494058]
[1674219137235,0.0065707,21112.0,21111.0,1.49462823]
[1674219137672,0.0065707,21112.0,21111.0,1.79462823]
[1674219137946,0.0065707,21112.0,21111.0,1.87962823]
[1674219140924,0.0065707,21112.0,21111.0,2.24589832]
[1674219141441,0.0065707,21112.0,21111.0,1.95204899]
[1674219143927,0.0065707,21112.0,21111.0,2.02854899]
[1674219145558,0.0065707,21112.0,21111.0,2.50575068]
[1674219145833,0.00506023,21112.0,21111.0,3.24329068]
[1674219146116,0.00506023,21112.0,21111.0,3.35486245]
[1674219146383,0.00506023,21112.0,21111.0,3.11802245]
[1674219146678,0.02532041,21113.0,21111.0,3.48013668]
[1674219146996,0.02532041,21113.0,21112.0,1.06723444]
[1674219147255,0.02532041,21113.0,21112.0,2.01456244]
[1674219148045,0.03132041,21113.0,21112.0,2.05056244]
[1674219148347,0.02532041,21113.0,21112.0,2.05056244]
[1674219148604,0.03132041,21113.0,21112.0,2.07556244]
[1674219149398,0.03132041,21113.0,21112.0,2.57626244]
[1674219149684,0.02377754,21113.0,21112.0,2.57626244]
[1674219149963,0.00789362,21113.0,21112.0,2.57626244]
[1674219150502,0.00789362,21113.0,21112.0,2.210479]
[1674219150764,0.00789362,21113.0,21112.0,2.57600345]
[1674219152437,0.00789362,21113.0,21112.0,1.333279]
[1674219153513,0.00789362,21113.0,21112.0,1.79771062]
[1674219154010,0.00789362,21113.0,21112.0,1.72121062]
[1674219154280,0.00789362,21113.0,21112.0,1.96663816]
[1674219154541,0.00789362,21113.0,21112.0,1.548279]
[1674219155100,0.00789362,21113.0,21112.0,1.5893386]
[1674219155606,0.00789362,21113.0,21112.0,1.5978386]
[1674219156087,0.00789362,21113.0,21112.0,2.02964401]
[1674219156608,0.00789362,21113.0,21112.0,1.5978386]
[1674219157371,0.00789362,21113.0,21112.0,2.03320186]
[1674219157675,0.00789362,21113.0,21112.0,1.87470186]
[1674219157892,0.00789362,21113.0,21112.0,1.57470186]
[1674219158163,0.00789362,21113.0,21112.0,1.48475086]
[1674219158871,0.00789362,21113.0,21112.0,1.0493876]
[1674219159170,0.00789362,21113.0,21112.0,1.3629026]
[1674219159430,0.00789362,21113.0,21112.0,1.3714026]
[1674219159705,0.00789362,21113.0,21112.0,1.81238785]
[1674219159964,0.00789362,21113.0,21112.0,2.11238785]
[1674219161030,0.00789362,21113.0,21112.0,1.7471026]
[1674219161814,0.00789362,21113.0,21112.0,2.1125375]
[1674219162906,0.00789362,21113.0,21112.0,1.7471026]
[1674219163933,0.00789362,21113.0,21112.0,2.11253696]
[1674219164257,0.00789362,21113.0,21112.0,1.7471026]
[1674219165754,0.00789362,21113.0,21112.0,2.14925664]
[1674219166540,0.00789362,21113.0,21112.0,1.7471026]
[1674219168716,0.00799833,21113.0,21112.0,2.10035813]
[1674219168979,0.00789362,21113.0,21112.0,1.86124509]
[1674219169234,0.00789362,21113.0,21112.0,1.85274509]
[1674219169772,0.00799833,21113.0,21112.0,1.85274509]
[1674219170035,0.00799833,21113.0,21112.0,1.53923009]
[1674219170296,0.17216833,21113.0,21112.0,1.23923009]
[1674219170847,0.00799833,21113.0,21112.0,1.23923009]
[1674219171076,0.00799833,21113.0,21112.0,1.38923009]
[1674219171077,0.00789362,21113.0,21112.0,1.38923009]
[1674219171593,0.00789362,21113.0,21112.0,2.01427309]
[1674219171846,0.00789362,21113.0,21112.0,1.68923009]
[1674219173640,0.00789362,21113.0,21112.0,2.01009609]
[1674219174158,0.00789362,21113.0,21112.0,1.69271233]
[1674219174418,0.00710426,21113.0,21112.0,2.48055848]
[1674219174931,0.00710426,21113.0,21112.0,2.59325665]
[1674219175185,0.00710426,21113.0,21112.0,2.48099875]
[1674219175439,0.00710426,21113.0,21112.0,2.31318038]
[1674219175700,0.00710426,21113.0,21112.0,2.48102252]
[1674219175969,0.00710426,21113.0,21112.0,2.59325665]
[1674219177335,0.00710426,21113.0,21112.0,2.47120719]
[1674219177516,0.00710426,21113.0,21112.0,2.48105444]
[1674219177769,0.00710426,21113.0,21112.0,2.19041851]
[1674219178032,0.00710426,21113.0,21112.0,2.07822244]
[1674219178835,0.00720897,21113.0,21112.0,1.49403966]
[1674219179094,0.00710426,21113.0,21112.0,1.17317366]
[1674219179968,0.00710426,21113.0,21112.0,1.32317366]
[1674219180146,0.00710426,21113.0,21112.0,1.43510291]
[1674219180671,0.00710426,21113.0,21112.0,1.47317366]
[1674219181480,0.00720897,21113.0,21112.0,1.47317366]
[1674219181754,0.00710426,21113.0,21112.0,1.47317366]
[1674219182274,0.00720897,21113.0,21112.0,1.47317366]
[1674219182800,0.00720897,21113.0,21112.0,1.94683766]
[1674219182801,0.00710426,21113.0,21112.0,1.94683766]
[1674219183061,0.00710426,21113.0,21112.0,1.69586781]
[1674219183320,0.00710426,21113.0,21112.0,2.1644279]
[1674219183593,0.00710426,21113.0,21112.0,2.72049814]
[1674219184396,0.00710426,21113.0,21112.0,2.621261]
[1674219184635,0.00710426,21113.0,21112.0,2.38764967]
[1674219185231,0.00710426,21113.0,21112.0,2.27637896]
[1674219185674,0.00710426,21113.0,21112.0,2.39087624]
[1674219185940,0.00710426,21113.0,21112.0,2.00924578]
[1674219186243,0.00710426,21113.0,21112.0,2.9014515]
[1674219186524,0.00710426,21113.0,21112.0,2.49906508]
[1674219186792,0.00710426,21113.0,21112.0,2.50967645]
[1674219187045,0.00720897,21113.0,21112.0,2.01161848]
[1674219187302,0.00710426,21113.0,21112.0,1.69824648]
[1674219188120,0.00710426,21113.0,21112.0,1.99824648]
[1674219188390,0.00710426,21113.0,21112.0,2.69513621]
[1674219188640,0.00710426,21113.0,21112.0,2.42814942]
[1674219188899,0.00710426,21113.0,21112.0,2.31621348]
[1674219189161,0.00710426,21113.0,21112.0,1.99824648]
[1674219190755,0.00710426,21113.0,21112.0,2.11018242]
[1674219191026,0.00710426,21113.0,21112.0,2.41991542]
[1674219192079,0.00710426,21113.0,21112.0,2.30797948]
[1674219192344,0.00710426,21113.0,21112.0,2.0056075]
[1674219192581,0.00710426,21113.0,21112.0,2.17348722]
[1674219192840,0.00710426,21113.0,21112.0,2.38284662]
[1674219193650,0.00710426,21113.0,21112.0,2.27155698]
[1674219194161,0.00710426,21113.0,21112.0,2.15964069]
[1674219194446,0.00710426,21113.0,21112.0,2.39134662]
[1674219194447,0.00639384,21113.0,21112.0,2.39134662]
[1674219196306,0.00639384,21113.0,21112.0,2.28033724]
[1674219196563,0.00639384,21113.0,21112.0,2.00026097]
[1674219196821,0.00639384,21113.0,21112.0,2.37873069]
[1674219196822,0.00326361,21113.0,21112.0,2.37873069]
[1674219197229,0.00326361,21113.0,21112.0,2.71505697]
[1674219197460,0.00326361,21113.0,21112.0,2.37873069]
[1674219197994,0.00326361,21113.0,21112.0,2.00026097]
[1674219198549,0.00326361,21113.0,21112.0,2.37865272]
[1674219198806,0.00326361,21113.0,21112.0,2.37864903]
[1674219199109,0.00326361,21113.0,21112.0,2.00026097]
[1674219199685,0.00326361,21113.0,21112.0,2.33658725]
[1674219200205,0.00326361,21113.0,21112.0,2.71525216]
[1674219200478,0.00326361,21113.0,21112.0,2.00026097]
[1674219201555,0.00326361,21113.0,21112.0,2.37879065]
[1674219202069,0.00326361,21113.0,21112.0,2.33658725]
[1674219202612,0.00326361,21113.0,21112.0,2.00026097]
[1674219202851,6.1e-07,21113.0,21112.0,2.37887615]
[1674219203098,6.1e-07,21113.0,21112.0,2.00026097]
[1674219203622,6.1e-07,21113.0,21112.0,2.37890472]
[1674219203814,6.1e-07,21113.0,21112.0,2.45540472]
[1674219204339,6.1e-07,21113.0,21112.0,2.93260641]
[1674219204559,0.02205419,21115.0,21113.0,0.65076]
[1674219204865,0.02205419,21115.0,21114.0,2.01252141]
[1674219205123,0.02205419,21115.0,21114.0,2.67097088]
[1674219205379,0.02205419,21115.0,21114.0,2.70665902]
[1674219205650,0.02205419,21115.0,21114.0,2.70657233]
[1674219206265,0.02205419,21115.0,21114.0,2.56492811]
[1674219206461,0.02205419,21115.0,21114.0,2.18652141]
[1674219206971,0.00318594,21115.0,21114.0,2.18652141]
[1674219207227,0.00318594,21115.0,21114.0,2.56510756]
[1674219207518,0.00318594,21115.0,21114.0,2.46605885]
[1674219207739,0.00318594,21115.0,21114.0,2.46606027]
[1674219209810,0.00318594,21115.0,21114.0,2.68966553]
[1674219210329,0.00318594,21115.0,21114.0,2.03360368]
[1674219211109,0.00318594,21115.0,21114.0,2.08956027]
[1674219211652,0.00318594,21115.0,21114.0,1.81002141]
[1674219211925,0.00318594,21115.0,21114.0,2.38947427]
[1674219212481,0.00318594,21115.0,21114.0,2.11002141]
[1674219212745,0.00318594,21115.0,21114.0,2.61298952]
[1674219213277,0.00318594,21115.0,21114.0,2.38943712]
[1674219213538,0.00318594,21115.0,21114.0,2.61297098]
[1674219213798,0.00318594,21115.0,21114.0,2.45683712]
[1674219214327,0.00318594,21115.0,21114.0,2.17742141]
[1674219214584,0.00178271,21118.0,21115.0,0.15]
[1674219214873,0.00178271,21118.0,21116.0,2.00973921]
[1674219215097,0.00178271,21118.0,21117.0,0.41402429]
[1674219215427,0.00178271,21118.0,21117.0,1.51112829]
[1674219215891,0.00178271,21118.0,21117.0,1.505657]
[1674219216978,0.00178271,21118.0,21117.0,1.597657]
[1674219218818,0.00188742,21118.0,21117.0,1.9529704]
[1674219219084,0.00178271,21118.0,21117.0,1.606157]
[1674219223572,0.00178271,21118.0,21117.0,2.01917756]
[1674219223825,0.00178271,21118.0,21117.0,1.606157]
[1674219226738,0.00178271,21118.0,21117.0,1.88544116]
[1674219226997,0.00178271,21118.0,21117.0,1.71783283]
[1674219227506,0.00178271,21118.0,21117.0,1.75383283]
[1674219227512,0.00178271,21118.0,21117.0,1.642157]
[1674219228306,0.00178271,21118.0,21117.0,1.75383283]
[1674219228840,0.00178271,21118.0,21117.0,1.642157]
[1674219229106,0.00178271,21118.0,21117.0,1.92144116]
[1674219229366,0.00178271,21118.0,21117.0,2.1968214]
[1674219229620,0.00178271,21118.0,21117.0,2.04316518]
[1674219231539,0.00178271,21118.0,21117.0,1.642157]
[1674219231811,0.00178271,21118.0,21117.0,1.75383283]
[1674219232781,0.00178271,21118.0,21117.0,1.86583283]
[1674219232783,0.00178271,21118.0,21117.0,1.754157]
[1674219233568,0.00178271,21118.0,21117.0,2.18713948]
[1674219233843,0.00178271,21118.0,21117.0,2.07513948]
[1674219234114,0.00178271,21118.0,21117.0,1.75383283]
[1674219234388,0.00178271,21118.0,21117.0,1.642157]
[1674219234647,0.00016501,21118.0,21117.0,1.75383283]
[1674219234905,0.00016501,21118.0,21117.0,1.7800627]
[1674219235208,0.00016501,21118.0,21117.0,1.6630097]
[1674219235746,0.00016501,21118.0,21117.0,1.9745987]
[1674219236012,0.00016501,21118.0,21117.0,1.6630097]
[1674219236278,0.00016501,21118.0,21117.0,1.9630097]
[1674219236715,0.03300945,21119.0,21118.0,0.52676617]
[1674219236947,0.03300945,21119.0,21118.0,1.32382417]
[1674219237171,0.03300945,21119.0,21118.0,1.62382417]
[1674219237562,0.03300945,21119.0,21118.0,1.65982417]
[1674219238044,0.03300945,21119.0,21118.0,1.75182417]
[1674219239587,0.03311416,21119.0,21118.0,1.75182417]
[1674219239996,0.03300945,21119.0,21118.0,1.75182417]
[1674219241200,0.03311416,21119.0,21118.0,1.75182417]
[1674219241679,0.03300945,21119.0,21118.0,1.75182417]
[1674219243163,0.03311416,21119.0,21118.0,1.75182417]
[1674219243405,0.03311416,21119.0,21118.0,1.45182417]
[1674219243892,0.03300945,21119.0,21118.0,1.45182417]
[1674219244141,0.03311416,21119.0,21118.0,0.97829517]
[1674219244378,0.34635716,21119.0,21118.0,0.97829517]
[1674219244654,0.34625245,21119.0,21118.0,1.27829517]
[1674219244895,0.03300945,21119.0,21118.0,1.27829517]
[1674219246158,0.03300945,21119.0,21118.0,1.75182417]
[1674219247355,0.03300945,21119.0,21118.0,1.38119299]
[1674219247600,0.03300945,21119.0,21118.0,1.80570272]
[1674219247840,0.44808123,21119.0,21118.0,1.19315471]
[1674219248130,0.44808123,21119.0,21118.0,1.38119299]
[1674219249094,0.03300945,21119.0,21118.0,1.38119299]
[1674219249615,0.03300945,21119.0,21118.0,1.88974647]
[1674219250098,0.03300945,21119.0,21118.0,1.77778475]
[1674219250558,0.02800945,21119.0,21118.0,1.77778475]
[1674219251544,0.02800945,21119.0,21118.0,1.88974647]
[1674219252049,0.02800945,21119.0,21118.0,1.47778475]
[1674219252294,0.35445116,21119.0,21118.0,1.47778475]
[1674219252792,0.35445116,21119.0,21118.0,1.21676351]
[1674219254027,0.35434645,21119.0,21118.0,1.21676351]
[1674219255004,0.35445116,21119.0,21118.0,1.21676351]
[1674219255516,0.35434645,21119.0,21118.0,1.21676351]
[1674219255985,0.35445116,21119.0,21118.0,0.74323451]
[1674219256248,0.35434645,21119.0,21118.0,0.74323451]
[1674219256739,0.35434645,21119.0,21118.0,1.04323451]
[1674219256982,0.35434645,21119.0,21118.0,0.74323451]
[1674219257961,0.35434645,21119.0,21118.0,0.78243035]
[1674219258445,0.35445116,21119.0,21118.0,0.78243035]
[1674219258670,0.35434645,21119.0,21118.0,0.78243035]
[1674219259746,0.35434645,21119.0,21118.0,0.5637876]
[1674219260012,0.35434645,21119.0,21118.0,0.16719584]
[1674219260777,0.35445116,21119.0,21118.0,0.16719584]
[1674219261009,0.35434645,21119.0,21118.0,0.16719584]
[1674219261539,0.35445116,21119.0,21118.0,0.16719584]
[1674219261793,0.35434645,21119.0,21118.0,0.46719584]
[1674219262317,0.35434645,21119.0,21118.0,0.16719584]
[1674219262822,0.69253157,21119.0,21117.0,0.37380633]
[1674219263083,0.36619457,21119.0,21118.0,0.036]
[1674219263461,0.75393222,21119.0,21117.0,0.84735733]
[1674219263631,0.336278,21118.0,21117.0,0.88335733]
[1674219264154,0.336278,21118.0,21117.0,1.19035733]
[1674219264732,0.9933775,21118.0,21117.0,0.043]
[1674219264992,0.6691115,21118.0,21117.0,0.043]
[1674219265263,0.9859485,21118.0,21117.0,0.043]
[1674219266300,0.9859485,21118.0,21117.0,0.036]
[1674219266563,0.9949485,21118.0,21117.0,0.043]
[1674219269367,0.2325,21118.0,21117.0,0.516552]
[1674219269624,0.2325,21118.0,21117.0,0.97559314]
[1674219269625,0.56526,21118.0,21117.0,0.97559314]
[1674219269901,0.2325,21118.0,21117.0,1.27559314]
[1674219270458,0.2325,21118.0,21117.0,0.97559314]
[1674219270715,0.547034,21118.0,21117.0,0.97559314]
[1674219271267,0.547034,21118.0,21117.0,0.043]
[1674219271834,0.547034,21118.0,21117.0,0.40540562]
[1674219272389,0.547034,21118.0,21117.0,0.32338478]
[1674219272663,0.547034,21118.0,21117.0,0.036]
[1674219273215,0.54713871,21118.0,21116.0,1.35397674]
[1674219273479,0.43243,21117.0,21116.0,1.38997674]
[1674219273788,0.111,21117.0,21116.0,1.68997674]
[1674219273997,0.12120471,21118.0,21116.0,1.38997674]
[1674219274241,0.48934166,21118.0,21116.0,1.38997674]
[1674219275072,0.48034166,21118.0,21116.0,1.38997674]
[1674219275298,0.009,21117.0,21116.0,1.38997674]
[1674219275836,0.48023695,21118.0,21117.0,0.00057007]
[1674219276062,0.48934166,21118.0,21117.0,0.47412207]
[1674219276303,0.48034166,21118.0,21117.0,0.47412207]
[1674219276564,0.1121,21118.0,21117.0,0.81012207]
[1674219276836,0.1121,21118.0,21117.0,1.71655101]
[1674219277097,0.12120471,21118.0,21117.0,1.71655101]
[1674219277350,0.1211,21118.0,21117.0,1.71655101]
[1674219279001,0.1211,21118.0,21117.0,1.46738545]
[1674219279720,0.12120471,21118.0,21117.0,1.46738545]
[1674219279975,0.1211,21118.0,21117.0,1.46738545]
[1674219280778,0.12120471,21118.0,21117.0,1.46738545]
[1674219281582,0.1211,21118.0,21117.0,1.46738545]
[1674219283811,0.009,21118.0,21117.0,1.46738545]
[1674219284638,0.009,21118.0,21117.0,0.73450851]
[1674219284874,0.81939476,21118.0,21117.0,0.26095651]
[1674219285136,0.327454,21118.0,21117.0,0.26095651]
[1674219285385,0.009,21118.0,21117.0,0.26095651]
[1674219285894,0.328362,21118.0,21117.0,0.70838457]
[1674219285895,0.328362,21118.0,21117.0,1.18193657]
[1674219286155,0.009,21118.0,21117.0,1.18193657]
[1674219286414,0.009,21118.0,21117.0,1.48193657]
[1674219287211,0.009,21118.0,21117.0,1.81415557]
[1674219287474,0.00910471,21118.0,21117.0,1.48193657]
[1674219288318,0.009,21118.0,21117.0,1.52128064]
[1674219288555,0.009,21118.0,21117.0,1.6381973]
[1674219288824,0.009,21118.0,21117.0,2.09268674]
[1674219289083,0.009,21118.0,21117.0,1.79596531]
[1674219289345,0.009,21118.0,21117.0,2.30551731]
[1674219290164,0.00064472,21118.0,21117.0,2.85496313]
[1674219290444,0.00064472,21118.0,21117.0,2.47262003]
[1674219291008,0.00064472,21118.0,21117.0,2.3050117]
[1674219291293,0.00064472,21118.0,21117.0,2.47262003]
[1674219291560,0.00064472,21118.0,21117.0,2.73495776]
[1674219291810,0.00064472,21118.0,21117.0,2.47262003]
[1674219292073,0.00064472,21118.0,21117.0,2.3050117]
[1674219292611,0.00064472,21118.0,21117.0,2.19309835]
[1674219292886,0.00074943,21118.0,21117.0,2.0050117]
[1674219293147,0.00074943,21118.0,21117.0,0.98668315]
[1674219294196,0.00064472,21118.0,21117.0,0.98668315]
[1674219294736,0.00064472,21118.0,21117.0,1.28668315]
[1674219295656,0.00074943,21118.0,21117.0,1.28668315]
[1674219295920,0.00064472,21118.0,21117.0,1.38808264]
[1674219296185,0.00064472,21118.0,21117.0,1.68808264]
[1674219296695,0.00064472,21118.0,21117.0,1.38808264]
[1674219297211,0.00064472,21118.0,21117.0,1.68808264]
[1674219297993,0.00074943,21118.0,21117.0,1.38808264]
[1674219298516,0.00064472,21118.0,21117.0,1.68808264]
[1674219301185,0.00064472,21118.0,21117.0,1.79999599]
[1674219301532,0.00064472,21118.0,21117.0,2.12103899]
[1674219301700,0.00064472,21118.0,21117.0,2.00912564]
[1674219301966,0.00064472,21118.0,21117.0,2.61566452]
[1674219302222,0.00064472,21118.0,21117.0,2.18508769]
[1674219303538,0.00064472,21118.0,21117.0,2.35269602]
[1674219303792,0.00064472,21118.0,21117.0,2.18508769]
[1674219304546,0.00064472,21118.0,21117.0,2.35271535]
[1674219304801,0.00064472,21118.0,21117.0,2.18510702]
[1674219306190,0.00064472,21118.0,21117.0,2.07317434]
[1674219306448,0.00064472,21118.0,21117.0,2.18510702]
[1674219307251,0.00064472,21118.0,21117.0,2.6150161]
[1674219308167,0.00064472,21118.0,21117.0,2.50488329]
[1674219308453,0.00064472,21118.0,21117.0,2.72836106]
[1674219308716,0.00064472,21118.0,21117.0,2.18691603]
[1674219308984,0.00064472,21118.0,21117.0,2.35452436]
[1674219309240,0.00064472,21118.0,21117.0,2.50487253]
[1674219309516,0.00064472,21118.0,21117.0,2.61676074]
[1674219309770,0.00064472,21118.0,21117.0,2.50487253]
[1674219310025,0.00064472,21118.0,21117.0,2.7283503]
[1674219310306,4.804e-05,21118.0,21117.0,2.50423463]
[1674219310843,4.804e-05,21118.0,21117.0,2.35450722]
[1674219311080,4.804e-05,21118.0,21117.0,2.18689889]
[1674219311881,4.804e-05,21118.0,21117.0,2.35450722]
[1674219312120,4.804e-05,21118.0,21117.0,2.61615235]
[1674219312366,4.804e-05,21118.0,21117.0,2.35450722]
[1674219313433,4.804e-05,21118.0,21117.0,2.18689889]
[1674219313656,4.804e-05,21118.0,21117.0,2.7277262]
[1674219313918,4.804e-05,21118.0,21117.0,2.9515262]
[1674219314959,4.804e-05,21118.0,21117.0,2.78391787]
[1674219315760,4.804e-05,21118.0,21117.0,2.951723]
[1674219316225,4.804e-05,21118.0,21117.0,2.95229294]
[1674219316736,4.804e-05,21118.0,21117.0,2.32570261]
[1674219317040,4.804e-05,21118.0,21117.0,3.17837159]
[1674219317281,0.02800945,21119.0,21118.0,0.27330196]
[1674219317521,0.02800945,21119.0,21118.0,2.09478174]
[1674219317774,0.02800945,21119.0,21118.0,3.41228174]
[1674219318028,0.02800945,21119.0,21118.0,3.412129]
[1674219318290,0.02800945,21119.0,21118.0,3.448129]
[1674219318566,0.02800945,21119.0,21118.0,3.45433649]
[1674219318822,0.02800945,21119.0,21118.0,2.65057095]
[1674219319080,0.02800945,21119.0,21118.0,1.97905866]
[1674219319334,0.02800945,21119.0,21118.0,1.62010705]
[1674219319857,0.02800945,21119.0,21118.0,1.22786241]
[1674219321215,0.4578169,21119.0,21118.0,1.22786241]
[1674219321477,0.4578169,21119.0,21118.0,0.16770441]
[1674219321478,0.7881589,21119.0,21118.0,0.16770441]
[1674219321977,0.9001589,21119.0,21118.0,0.16770441]
[1674219323233,0.9001589,21119.0,21118.0,0.07570441]
[1674219323506,0.9081589,21119.0,21118.0,0.08170441]
[1674219324011,0.7961589,21119.0,21118.0,0.08170441]
[1674219324816,0.72631957,21119.0,21118.0,0.08170441]
[1674219325569,0.83731957,21119.0,21118.0,0.08170441]
[1674219326149,0.98731957,21119.0,21118.0,0.08170441]
[1674219326373,0.83731957,21119.0,21118.0,0.08170441]
[1674219329471,0.98731957,21119.0,21118.0,0.08170441]
[1674219330540,0.82167242,21119.0,21118.0,0.08170441]